bitfinex-derivatives/quotes_SOLF0:USTF0_20260115
["timestamp","ask_amount","ask_price","bid_price","bid_amount"]
[1768510362672,20.94120984,141.4,141.32,28.88901633]
[1768510362876,20.94120984,141.38,141.32,6.3697]
[1768510363768,27.30860984,141.38,141.32,6.3697]
[1768510363972,20.94120984,141.4,141.34,22.51931633]
[1768510364181,26.26819643,141.39,141.32,22.51931633]
[1768510364373,20.94120984,141.38,141.32,22.51931633]
[1768510366377,27.30860984,141.38,141.32,28.88911633]
[1768510368578,20.94120984,141.38,141.32,28.88911633]
[1768510373488,20.94120984,141.38,141.33,6.3696]
[1768510374280,25.43475426,141.41,141.34,6.3691]
[1768510374486,32.58098988,141.4,141.34,6.3691]
[1768510374687,5.32976759,141.39,141.34,6.3691]
[1768510374887,21.93118785,141.4,141.34,6.3691]
[1768510375090,5.32947725,141.39,141.34,6.3691]
[1768510375386,21.93118785,141.4,141.34,6.3691]
[1768510375587,5.3298854,141.39,141.35,6.3686]
[1768510375788,21.93118785,141.4,141.35,6.3686]
[1768510376089,5.32989623,141.39,141.35,6.3686]
[1768510376289,21.93118785,141.4,141.35,6.3686]
[1768510376586,5.33005181,141.39,141.35,6.3686]
[1768510376788,21.93118785,141.4,141.35,6.3686]
[1768510376988,5.33005181,141.39,141.35,6.3686]
[1768510377190,21.93118785,141.4,141.35,6.3686]
[1768510377383,5.33015187,141.39,141.35,6.3686]
[1768510377579,21.93118785,141.39,141.33,28.37713409]
[1768510378894,21.93118785,141.39,141.34,6.3692]
[1768510381996,21.93118785,141.39,141.33,22.00793409]
[1768510381997,28.29708785,141.42,141.36,22.00793409]
[1768510382293,5.33178694,141.41,141.36,22.00793409]
[1768510382488,21.93118785,141.42,141.36,28.37603409]
[1768510382682,5.33206251,141.41,141.36,22.00793409]
[1768510382992,21.93118785,141.42,141.36,22.00793409]
[1768510383193,21.93118785,141.44,141.37,28.37573409]
[1768510383385,5.33217063,141.43,141.37,28.37573409]
[1768510383592,21.93118785,141.44,141.37,28.37573409]
[1768510383786,5.3321881,141.43,141.37,28.37573409]
[1768510383984,21.93118785,141.44,141.37,28.37573409]
[1768510384185,5.33053056,141.43,141.38,28.37523409]
[1768510384389,6.3647,141.45,141.38,22.00793409]
[1768510384589,5.3323407,141.44,141.38,22.00793409]
[1768510384797,21.93118785,141.46,141.38,22.00793409]
[1768510384988,32.58240202,141.45,141.38,22.00793409]
[1768510385194,5.33316074,141.44,141.39,6.3669]
[1768510385390,21.93118785,141.45,141.39,6.3669]
[1768510385595,5.33234431,141.44,141.39,6.3669]
[1768510385790,21.93118785,141.45,141.39,6.3669]
[1768510385991,5.33267681,141.44,141.39,6.3669]
[1768510386194,21.93118785,141.45,141.39,6.3669]
[1768510386498,5.33168033,141.44,141.38,22.00793409]
[1768510386796,21.93118785,141.45,141.38,22.00793409]
[1768510386989,5.33112723,141.44,141.38,22.00793409]
[1768510387195,21.93118785,141.44,141.35,22.00793409]
[1768510387599,27.25876027,141.43,141.35,22.00793409]
[1768510387787,21.93118785,141.43,141.35,22.00793409]
[1768510387989,21.93118785,141.42,141.35,22.00793409]
[1768510388697,28.29678785,141.42,141.35,28.37643409]
[1768510389197,21.93118785,141.41,141.35,28.37643409]
[1768510395905,21.93118785,141.41,141.36,6.3682]
[1768510396901,21.93118785,141.41,141.36,28.37613409]
[1768510397607,21.93118785,141.44,141.37,22.00793409]
[1768510397809,5.32434936,141.43,141.37,22.00793409]
[1768510398108,21.93118785,141.44,141.37,22.00793409]
[1768510398298,5.32471738,141.43,141.38,6.3673]
[1768510398501,21.93118785,141.44,141.38,6.3673]
[1768510398703,21.93118785,141.42,141.35,22.00793409]
[1768510399207,21.93118785,141.41,141.36,6.3679]
[1768510400297,21.93118785,141.41,141.33,22.00793409]
[1768510401803,21.93118785,141.41,141.36,6.3683]
[1768510404908,27.71113917,141.43,141.37,6.3678]
[1768510405413,3.50356641,141.45,141.37,21.18075993]
[1768510405414,27.99051249,141.45,141.37,21.18075993]
[1768510405613,5.32714289,141.44,141.37,21.18075993]
[1768510405814,21.62591249,141.44,141.37,21.18075993]
[1768510406714,21.62591249,141.44,141.38,6.367]
[1768510407115,21.62591249,141.44,141.38,29.4065437]
[1768510410217,21.62591249,141.44,141.39,29.4064437]
[1768510410421,2.24122179,141.46,141.4,23.0395437]
[1768510411309,27.98961249,141.47,141.4,23.0395437]
[1768510411518,5.33229645,141.46,141.4,23.0395437]
[1768510411814,21.62591249,141.46,141.4,23.0395437]
[1768510413225,6.3637,141.47,141.4,23.0395437]
[1768510413426,18.5370044,141.49,141.41,23.0395437]
[1768510414915,18.5370044,141.49,141.43,6.3651]
[1768510415818,18.5370044,141.49,141.43,29.4046437]
[1768510416430,18.5370044,141.49,141.44,6.3646]
[1768510416831,18.70781623,141.5,141.44,29.4041437]
[1768510417322,18.70781623,141.5,141.45,23.0395437]
[1768510418930,46.69572872,141.5,141.43,23.0395437]
[1768510419137,48.93695051,141.5,141.43,23.0395437]
[1768510419819,48.93695051,141.5,141.43,29.4045437]
[1768510420425,42.57495051,141.5,141.43,29.4045437]
[1768510422633,18.70781623,141.5,141.45,23.0395437]
[1768510423733,18.70781623,141.5,141.45,29.4036437]
[1768510424237,120.1693,141.58,141.47,23.0395437]
[1768510424238,21.62591249,141.54,141.47,23.0395437]
[1768510424433,23.86713428,141.54,141.47,23.0395437]
[1768510424938,2.24122179,141.53,141.47,23.0395437]
[1768510425124,21.62591249,141.54,141.47,23.0395437]
[1768510425331,2.24122179,141.53,141.47,23.0395437]
[1768510426328,30.22793428,141.53,141.47,23.0395437]
[1768510426636,27.98671249,141.53,141.47,23.0395437]
[1768510426834,30.22793428,141.53,141.47,23.0395437]
[1768510427036,23.86713428,141.53,141.47,23.0395437]
[1768510428733,23.86713428,141.53,141.47,29.4027437]
[1768510429333,6.36,141.55,141.48,29.4022437]
[1768510429334,30.22713428,141.55,141.48,29.4022437]
[1768510429537,21.62591249,141.55,141.48,23.0395437]
[1768510430540,23.86713428,141.56,141.5,6.3619]
[1768510431331,30.22653428,141.56,141.49,6.3624]
[1768510433646,30.22653428,141.56,141.49,29.53095832]
[1768510434847,27.98531249,141.56,141.49,29.53095832]
[1768510435055,30.22653428,141.56,141.49,29.53095832]
[1768510435338,24.07917786,141.52,141.46,6.3636]
[1768510435542,21.83795607,141.52,141.44,23.16855832]
[1768510435736,2.24122179,141.51,141.44,23.16855832]
[1768510436735,2.24122179,141.51,141.45,6.3642]
[1768510437542,2.24122179,141.51,141.45,29.53275832]
[1768510444453,21.83795607,141.5,141.43,29.53325832]
[1768510444653,24.07917786,141.49,141.43,29.53325832]
[1768510444849,24.07917786,141.51,141.43,23.16855832]
[1768510445960,24.07917786,141.51,141.45,6.3642]
[1768510447965,24.07917786,141.51,141.45,29.53275832]
[1768510449466,2.24122179,141.5,141.45,29.53275832]
[1768510452069,21.83795607,141.49,141.41,23.16855832]
[1768510452270,24.07917786,141.48,141.41,23.16855832]
[1768510453373,24.07917786,141.48,141.43,23.16855832]
[1768510453374,2.24122179,141.48,141.43,23.16855832]
[1768510453965,6.3624,141.49,141.43,23.16855832]
[1768510454167,8.60362179,141.49,141.43,23.16855832]
[1768510456676,8.60362179,141.49,141.43,29.53365832]
[1768510456978,8.60362179,141.49,141.44,23.16855832]
[1768510459685,11.68814654,141.48,141.42,23.16855832]
[1768510459981,6.3629,141.48,141.42,23.16855832]
[1768510460369,24.07917786,141.47,141.42,29.53405832]
[1768510460574,24.07917786,141.47,141.42,23.16855832]
[1768510460774,2.24122179,141.45,141.4,23.16855832]
[1768510461473,24.88729925,141.45,141.4,23.16855832]
[1768510467291,22.64607746,141.45,141.4,23.16855832]
[1768510467486,21.44083687,141.47,141.41,21.77361552]
[1768510467691,24.94302832,141.45,141.36,21.77361552]
[1768510467885,21.44083687,141.45,141.36,21.77361552]
[1768510468790,27.80503687,141.45,141.38,6.367]
[1768510468989,27.80503687,141.45,141.38,28.14061552]
[1768510469492,21.44083687,141.45,141.39,21.77361552]
[1768510471197,21.44083687,141.45,141.39,28.14051552]
[1768510472886,24.94302832,141.47,141.41,21.77361552]
[1768510473087,24.94302832,141.49,141.41,21.77361552]
[1768510473293,5.30726474,141.48,141.41,21.77361552]
[1768510473489,24.94302832,141.49,141.41,21.77361552]
[1768510473692,5.3071012,141.48,141.41,21.77361552]
[1768510473893,24.94302832,141.49,141.41,21.77361552]
[1768510474801,31.30542832,141.49,141.42,28.13911552]
[1768510475893,21.44083687,141.48,141.42,28.13911552]
[1768510476695,21.44083687,141.47,141.4,21.77361552]
[1768510478000,21.44083687,141.47,141.41,28.13951552]
[1768510480204,6.3624,141.5,141.43,21.77361552]
[1768510480401,3.50219145,141.55,141.45,21.77361552]
[1768510480610,5.31640047,141.54,141.45,21.77361552]
[1768510480803,5.31640047,141.53,141.47,28.13691552]
[1768510481014,3.50219145,141.57,141.47,28.13691552]
[1768510481311,10.483018,141.56,141.47,21.77361552]
[1768510481606,11.67651648,141.55,141.48,6.3627]
[1768510481804,6.3598,141.55,141.48,6.3627]
[1768510482307,18.62293699,141.55,141.48,6.3627]
[1768510485915,12.26313699,141.55,141.49,28.13601552]
[1768510486614,12.26313699,141.55,141.49,21.77361552]
[1768510486816,12.46867024,141.59,141.49,21.77361552]
[1768510487004,22.94371538,141.58,141.49,21.77361552]
[1768510487204,5.31301482,141.57,141.49,21.77361552]
[1768510487409,17.83117363,141.57,141.49,21.77361552]
[1768510487608,5.31301482,141.56,141.49,21.77361552]
[1768510487815,12.51815881,141.57,141.5,21.77361552]
[1768510488113,5.31201474,141.56,141.5,21.77361552]
[1768510488306,12.51815881,141.57,141.5,21.77361552]
[1768510488514,5.31105675,141.56,141.5,21.77361552]
[1768510488803,18.87725881,141.57,141.5,21.77361552]
[1768510489008,5.31104069,141.56,141.5,21.77361552]
[1768510489209,18.87725881,141.57,141.5,21.77361552]
[1768510490314,12.6636392,141.55,141.47,21.77361552]
[1768510490612,12.6636392,141.57,141.47,21.77361552]
[1768510491812,12.6636392,141.57,141.46,98.9871]
[1768510491813,12.6636392,141.57,141.49,29.72368225]
[1768510492012,12.6636392,141.57,141.5,23.36138225]
[1768510492815,19.0225392,141.57,141.5,23.36138225]
[1768510493608,19.16891501,141.56,141.5,23.36138225]
[1768510499315,13.0762601,141.54,141.46,23.36138225]
[1768510500308,13.11884442,141.53,141.44,23.36138225]
[1768510500708,13.11884442,141.55,141.44,23.36138225]
[1768510501118,6.3607,141.53,141.46,23.36138225]
[1768510501712,19.47864442,141.55,141.49,23.36138225]
[1768510501909,13.11884442,141.55,141.49,23.36138225]
[1768510502820,6.3602,141.54,141.49,23.36138225]
[1768510503719,13.11884442,141.55,141.49,23.36138225]
[1768510503919,13.24410172,141.57,141.5,23.36138225]
[1768510504319,13.24410172,141.57,141.49,6.3623]
[1768510504519,13.24410172,141.57,141.49,29.72368225]
[1768510504921,6.3598,141.55,141.49,29.72368225]
[1768510506320,13.36474854,141.56,141.49,29.72368225]
[1768510506519,13.36474854,141.59,141.51,23.36138225]
[1768510507816,13.40419644,141.57,141.49,23.36138225]
[1768510509922,19.76329644,141.57,141.5,23.36138225]
[1768510512325,13.59438845,141.55,141.49,6.3622]
[1768510512516,13.59438845,141.55,141.49,29.72358225]
[1768510514227,98.8992,141.6,141.47,23.36138225]
[1768510514228,13.63158496,141.56,141.47,23.36138225]
[1768510514932,19.99108496,141.56,141.49,6.3624]
[1768510515130,19.99108496,141.56,141.49,29.72378225]
[1768510515522,19.99108496,141.56,141.5,23.36138225]
[1768510519236,19.99108496,141.56,141.5,29.72318225]
[1768510524036,5.32088581,141.55,141.5,29.72318225]
[1768510524338,6.3588,141.57,141.51,24.27538443]
[1768510524538,5.32510543,141.56,141.51,24.27538443]
[1768510524746,5.32510543,141.55,141.51,24.27538443]
[1768510525030,6.3588,141.57,141.51,24.27538443]
[1768510525237,11.68440372,141.56,141.51,24.27538443]
[1768510525534,5.32510372,141.55,141.51,24.27538443]
[1768510527740,5.32510372,141.55,141.51,30.63678443]
[1768510527937,6.3588,141.57,141.51,30.63678443]
[1768510528138,10.52885178,141.56,141.51,30.63678443]
[1768510528339,5.32880491,141.55,141.51,30.63678443]
[1768510528542,6.3588,141.57,141.51,30.63678443]
[1768510528739,10.52868902,141.56,141.51,30.63678443]
[1768510528945,5.32858236,141.55,141.51,30.63678443]
[1768510529241,6.3588,141.57,141.51,30.63678443]
[1768510529439,10.52988715,141.56,141.51,30.63678443]
[1768510529646,5.32911407,141.55,141.51,30.63678443]
[1768510529831,8.59654528,141.57,141.51,30.63678443]
[1768510530036,10.52983568,141.56,141.51,30.63678443]
[1768510530244,5.32904476,141.55,141.51,30.63678443]
[1768510530443,8.59654528,141.57,141.51,30.63678443]
[1768510530644,10.53155697,141.56,141.51,30.63678443]
[1768510530837,5.32989682,141.55,141.51,30.63678443]
[1768510531038,8.59654528,141.57,141.51,30.63678443]
[1768510531238,10.531753,141.56,141.51,30.63678443]
[1768510531444,8.59654528,141.57,141.51,30.63678443]
[1768510531445,5.32988764,141.55,141.51,30.63678443]
[1768510531646,8.59654528,141.57,141.51,30.63678443]
[1768510531845,10.53220707,141.56,141.51,30.63678443]
[1768510532146,5.33021903,141.55,141.52,29.01856203]
[1768510532348,2.23774528,141.57,141.52,29.01856203]
[1768510532547,5.33160183,141.56,141.52,29.01856203]
[1768510532748,5.33160183,141.55,141.52,29.01856203]
[1768510532950,2.23774528,141.57,141.52,29.01856203]
[1768510533150,5.3327078,141.56,141.52,29.01856203]
[1768510533449,5.3327078,141.55,141.52,29.01856203]
[1768510533747,2.23774528,141.57,141.52,29.01856203]
[1768510533945,5.33313174,141.56,141.52,29.01856203]
[1768510534143,5.33313174,141.55,141.52,29.01856203]
[1768510534335,2.23774528,141.57,141.52,22.65746203]
[1768510534539,10.53944977,141.56,141.52,22.65746203]
[1768510534745,5.33392297,141.55,141.52,22.65746203]
[1768510535048,2.23774528,141.57,141.52,22.65746203]
[1768510535242,10.54032937,141.56,141.52,22.65746203]
[1768510535442,5.33432979,141.55,141.52,22.65746203]
[1768510535640,8.59614528,141.58,141.53,22.65746203]
[1768510535841,10.54091349,141.57,141.53,22.65746203]
[1768510536038,5.33481831,141.56,141.53,22.65746203]
[1768510536241,5.33481831,141.55,141.53,22.65746203]
[1768510537341,10.5429836,141.57,141.54,0.05250407]
[1768510537537,5.33601677,141.56,141.54,0.05250407]
[1768510537736,6.3584,141.58,141.54,0.05250407]
[1768510537941,10.51520269,141.57,141.54,0.05250407]
[1768510538149,5.33606941,141.56,141.54,0.05250407]
[1768510538340,6.3584,141.58,141.54,0.05250407]
[1768510538541,10.51449874,141.57,141.54,0.05250407]
[1768510538747,5.3357335,141.56,141.54,0.05250407]
[1768510538949,6.3584,141.58,141.54,0.05250407]
[1768510539445,5.3356013,141.57,141.54,0.05250407]
[1768510539746,5.3356013,141.56,141.54,0.05250407]
[1768510541550,6.3584,141.58,141.54,0.05250407]
[1768510541751,5.33512852,141.57,141.54,0.05250407]
[1768510541942,5.33512852,141.56,141.54,0.05250407]
[1768510542142,20.91144636,141.58,141.54,0.05250407]
[1768510542343,5.33519325,141.57,141.54,0.05250407]
[1768510542552,5.33519325,141.56,141.54,0.05250407]
[1768510542853,2.23774528,141.57,141.54,0.05250407]
[1768510543044,5.33491117,141.56,141.54,0.05250407]
[1768510543244,2.23774528,141.57,141.54,0.05250407]
[1768510543441,5.33471054,141.56,141.51,29.01896203]
[1768510543641,8.59664528,141.57,141.51,29.01896203]
[1768510543836,5.33468879,141.56,141.52,22.65746203]
[1768510544037,8.59664528,141.57,141.52,22.65746203]
[1768510544249,5.33517434,141.56,141.52,22.65746203]
[1768510544451,8.59664528,141.57,141.52,22.65746203]
[1768510544745,0.05424685,141.55,141.52,22.65746203]
[1768510547649,0.05424685,141.55,141.51,6.3615]
[1768510547850,5.33495143,141.54,141.5,22.65746203]
[1768510548050,0.05424685,141.55,141.5,22.65746203]
[1768510548250,5.33566198,141.54,141.5,22.65746203]
[1768510548449,0.05424685,141.55,141.5,22.65746203]
[1768510548650,5.33654109,141.54,141.5,22.65746203]
[1768510548954,0.05424685,141.55,141.5,29.01946203]
[1768510549147,5.33637551,141.54,141.5,29.01946203]
[1768510549347,0.05424685,141.55,141.5,29.01946203]
[1768510549647,5.33663403,141.54,141.5,29.01946203]
[1768510549848,0.05424685,141.55,141.5,29.01946203]
[1768510550047,20.08441486,141.54,141.48,29.01996203]
[1768510550253,5.33664491,141.53,141.48,29.01996203]
[1768510550554,14.74776995,141.54,141.48,29.01996203]
[1768510550751,5.3427146,141.53,141.48,29.01996203]
[1768510550954,0.04520882,141.52,141.48,29.01996203]
[1768510560161,0.04520882,141.52,141.49,23.39306669]
[1768510561557,14.74776995,141.54,141.49,23.39306669]
[1768510561757,5.33478116,141.53,141.49,23.39306669]
[1768510562056,14.74776995,141.54,141.49,23.39306669]
[1768510562256,5.33478116,141.53,141.49,23.39306669]
[1768510562456,14.74776995,141.54,141.49,23.39306669]
[1768510562667,5.33441269,141.53,141.49,23.39306669]
[1768510562867,14.74776995,141.54,141.49,23.39306669]
[1768510563060,5.33435833,141.53,141.49,23.39306669]
[1768510563262,21.10806995,141.54,141.49,23.39306669]
[1768510563566,5.33395108,141.53,141.49,23.39306669]
[1768510563766,21.10806995,141.54,141.49,23.39306669]
[1768510563962,5.33395108,141.53,141.49,23.39306669]
[1768510564166,20.39351175,141.58,141.49,23.39306669]
[1768510564370,27.83839707,141.57,141.49,23.39306669]
[1768510564563,5.17567878,141.56,141.49,23.39306669]
[1768510565763,22.69442873,141.55,141.49,23.39306669]
[1768510576087,5.30608694,141.54,141.49,23.39306669]
[1768510576280,22.69442873,141.55,141.49,23.39306669]
[1768510576481,5.30747985,141.54,141.49,23.39306669]
[1768510576681,22.69442873,141.55,141.49,23.39306669]
[1768510576881,5.30748329,141.54,141.49,23.39306669]
[1768510577073,22.69442873,141.55,141.49,29.75546669]
[1768510577277,5.30755502,141.54,141.49,29.75546669]
[1768510577478,22.69442873,141.55,141.49,29.75546669]
[1768510577675,22.78039808,141.6,141.52,6.361]
[1768510577877,27.93261922,141.59,141.53,23.39306669]
[1768510578082,22.78039808,141.59,141.53,23.39306669]
[1768510578282,22.78039808,141.58,141.51,23.39306669]
[1768510579079,6.3589,141.57,141.51,29.75456669]
[1768510580882,6.3589,141.57,141.52,23.0006164]
[1768510581290,30.23090726,141.57,141.52,23.0006164]
[1768510586194,23.87200726,141.57,141.52,23.0006164]
[1768510589690,5.27687431,141.56,141.52,23.0006164]
[1768510589894,26.67069168,141.6,141.52,23.0006164]
[1768510590095,23.17429448,141.58,141.52,23.0006164]
[1768510590291,5.27685365,141.57,141.52,23.0006164]
[1768510590491,5.27685365,141.56,141.52,23.0006164]
[1768510590786,23.17429448,141.58,141.52,23.0006164]
[1768510590992,5.27658245,141.57,141.52,23.0006164]
[1768510591195,5.27658245,141.56,141.52,23.0006164]
[1768510591396,23.17429448,141.58,141.52,23.0006164]
[1768510591596,10.47495184,141.57,141.52,23.0006164]
[1768510591797,5.27678715,141.56,141.52,23.0006164]
[1768510591992,23.17429448,141.58,141.52,23.0006164]
[1768510592187,10.47483827,141.57,141.52,23.0006164]
[1768510592393,23.17429448,141.58,141.52,23.0006164]
[1768510592394,5.27678715,141.56,141.52,23.0006164]
[1768510592594,23.17429448,141.58,141.52,23.0006164]
[1768510592899,10.47511581,141.57,141.52,23.0006164]
[1768510593196,5.27691721,141.56,141.52,23.0006164]
[1768510593397,23.17429448,141.58,141.52,23.0006164]
[1768510593592,35.57536994,141.57,141.52,23.0006164]
[1768510593787,5.27672849,141.56,141.52,23.0006164]
[1768510593990,25.10065899,141.57,141.52,23.0006164]
[1768510594198,5.27671554,141.56,141.52,23.0006164]
[1768510594399,25.10065899,141.57,141.52,23.0006164]
[1768510594599,5.27653999,141.56,141.52,23.0006164]
[1768510594799,30.37784874,141.55,141.49,25.6545105]
[1768510594998,25.10065899,141.55,141.49,25.6545105]
[1768510595902,6.3591,141.57,141.49,32.0168105]
[1768510596104,5.27700478,141.56,141.49,32.0168105]
[1768510596301,5.27700478,141.55,141.49,32.0168105]
[1768510596503,31.45975899,141.57,141.49,32.0168105]
[1768510596703,5.27700626,141.56,141.49,32.0168105]
[1768510596904,5.27700626,141.55,141.49,32.0168105]
[1768510597201,31.45975899,141.57,141.49,32.0168105]
[1768510597397,5.2770851,141.56,141.49,32.0168105]
[1768510597603,5.2770851,141.55,141.49,32.0168105]
[1768510597807,31.45975899,141.57,141.49,32.0168105]
[1768510597997,5.27670962,141.56,141.49,32.0168105]
[1768510598194,5.27670962,141.55,141.49,32.0168105]
[1768510598398,31.45975899,141.57,141.49,32.0168105]
[1768510598697,5.27673033,141.56,141.49,32.0168105]
[1768510598897,5.27673033,141.55,141.49,32.0168105]
[1768510599097,31.45975899,141.57,141.49,32.0168105]
[1768510599296,5.27525601,141.56,141.49,32.0168105]
[1768510599497,5.27525601,141.55,141.49,32.0168105]
[1768510599705,31.45975899,141.57,141.49,32.0168105]
[1768510599706,25.10065899,141.56,141.49,32.0168105]
[1768510599905,5.2745221,141.55,141.49,32.0168105]
[1768510600106,31.45995899,141.56,141.49,32.0168105]
[1768510600307,5.27609874,141.55,141.49,32.0168105]
[1768510600608,31.45995899,141.56,141.49,32.0168105]
[1768510600802,5.27615799,141.55,141.49,32.0168105]
[1768510601003,31.45995899,141.56,141.49,32.0168105]
[1768510601203,5.27697128,141.55,141.49,32.0168105]
[1768510601510,31.45995899,141.56,141.49,32.0168105]
[1768510601709,5.27706938,141.55,141.49,32.0168105]
[1768510601911,31.46045899,141.55,141.49,25.6545105]
[1768510602114,30.37690826,141.54,141.44,25.6545105]
[1768510602316,25.10065899,141.54,141.45,25.6545105]
[1768510603914,31.46085899,141.54,141.48,32.0173105]
[1768510604827,25.10065899,141.52,141.46,32.0180105]
[1768510605909,6.3606,141.53,141.46,32.0180105]
[1768510606514,5.29843707,141.52,141.46,32.0180105]
[1768510606714,6.3606,141.53,141.46,32.0180105]
[1768510606909,5.29843707,141.52,141.46,32.0180105]
[1768510607110,31.46125899,141.53,141.46,32.0180105]
[1768510607309,5.29764683,141.52,141.46,32.0180105]
[1768510607509,31.46125899,141.53,141.46,32.0180105]
[1768510607709,5.29749976,141.52,141.46,32.0180105]
[1768510607910,31.46125899,141.53,141.46,32.0180105]
[1768510608111,5.29743536,141.52,141.46,32.0180105]
[1768510608318,31.46125899,141.53,141.46,32.0180105]
[1768510608514,5.29670199,141.52,141.46,32.0180105]
[1768510608716,25.10065899,141.51,141.46,25.6545105]
[1768510610920,6.3611,141.52,141.46,32.0182105]
[1768510611617,27.74833813,141.54,141.46,32.0182105]
[1768510611818,5.29557253,141.53,141.46,32.0182105]
[1768510612022,27.74833813,141.54,141.48,25.02005011]
[1768510612023,5.29557253,141.52,141.48,25.02005011]
[1768510612220,6.3601,141.55,141.48,25.02005011]
[1768510612417,5.29572609,141.54,141.48,25.02005011]
[1768510612721,6.3601,141.55,141.48,25.02005011]
[1768510613016,5.29669102,141.54,141.48,25.02005011]
[1768510613220,30.61204093,141.55,141.48,25.02005011]
[1768510613820,30.61204093,141.55,141.49,25.02005011]
[1768510616419,30.61084093,141.57,141.49,25.02005011]
[1768510616619,5.29621596,141.56,141.49,25.02005011]
[1768510616816,30.61084093,141.57,141.49,25.02005011]
[1768510617114,5.29671699,141.56,141.49,25.02005011]
[1768510617323,30.61084093,141.57,141.49,25.02005011]
[1768510618011,5.29677601,141.56,141.49,25.02005011]
[1768510618216,24.25194093,141.57,141.5,25.02005011]
[1768510620219,24.25194093,141.57,141.51,25.02005011]
[1768510621118,6.3582,141.59,141.52,25.02005011]
[1768510621119,24.25194093,141.59,141.52,25.02005011]
[1768510621320,5.30117874,141.58,141.52,25.02005011]
[1768510621622,5.30117874,141.57,141.52,25.02005011]
[1768510621822,24.25194093,141.6,141.52,25.02005011]
[1768510622124,5.30153828,141.59,141.52,25.02005011]
[1768510622326,5.30153828,141.58,141.52,25.02005011]
[1768510622623,24.25194093,141.6,141.52,25.02005011]
[1768510622824,5.30112724,141.59,141.52,31.38085011]
[1768510623018,5.30112724,141.58,141.53,25.02005011]
[1768510623224,24.25194093,141.6,141.53,25.02005011]
[1768510623427,5.30113257,141.59,141.53,25.02005011]
[1768510623627,5.30113257,141.58,141.53,25.02005011]
[1768510623824,24.25194093,141.6,141.53,25.02005011]
[1768510624022,5.30151179,141.59,141.53,25.02005011]
[1768510624229,5.30151179,141.58,141.53,25.02005011]
[1768510624431,24.25194093,141.6,141.53,25.02005011]
[1768510624630,5.30115275,141.59,141.53,25.02005011]
[1768510624817,5.30115275,141.58,141.53,25.02005011]
[1768510625021,24.25194093,141.6,141.53,25.02005011]
[1768510625229,5.30200512,141.59,141.53,25.02005011]
[1768510625528,5.30200512,141.58,141.53,25.02005011]
[1768510625734,24.25194093,141.6,141.53,25.02005011]
[1768510625933,24.25194093,141.57,141.5,31.38185011]
[1768510626327,24.25194093,141.57,141.51,25.02005011]
[1768510629234,24.25194093,141.57,141.51,31.38155011]
[1768510629835,24.25194093,141.57,141.47,98.9792]
[1768510629836,24.25194093,141.59,141.53,25.02005011]
[1768510630134,5.3052564,141.58,141.53,25.02005011]
[1768510630335,6.3579,141.6,141.53,25.02005011]
[1768510630531,5.30512282,141.59,141.53,25.02005011]
[1768510630735,24.25194093,141.61,141.55,25.02005011]
[1768510630933,24.25194093,141.65,141.55,25.02005011]
[1768510631136,98.8397,141.68,141.55,25.02005011]
[1768510631137,29.3817777,141.64,141.55,25.02005011]
[1768510631333,24.25194093,141.64,141.55,25.02005011]
[1768510632933,30.60764093,141.64,141.57,6.3585]
[1768510638042,24.25194093,141.63,141.57,31.37855011]
[1768510641645,23.93393439,141.65,141.58,31.93939307]
[1768510645138,23.93393439,141.65,141.58,25.58149307]
[1768510649350,26.16932911,141.65,141.58,25.58149307]
[1768510649643,26.45549296,141.64,141.58,25.58149307]
[1768510650850,32.81129296,141.64,141.58,25.58149307]
[1768510653951,2.23539472,141.65,141.52,98.9468]
[1768510653952,26.45549296,141.6,141.55,32.90383352]
[1768510654148,26.45549296,141.6,141.53,26.54453352]
[1768510654359,2.23539472,141.59,141.53,32.90493352]
[1768510654548,26.45549296,141.59,141.49,26.54453352]
[1768510654850,2.23539472,141.57,141.51,6.3615]
[1768510655148,2.23539472,141.57,141.51,32.90603352]
[1768510655949,28.69088768,141.55,141.49,32.90673352]
[1768510656456,2.23539472,141.55,141.49,32.90673352]
[1768510658148,26.45549296,141.57,141.45,99.9986]
[1768510658149,28.69088768,141.53,141.47,26.54453352]
[1768510659550,28.69088768,141.53,141.45,27.54453352]
[1768510659756,2.23539472,141.51,141.45,27.54453352]
[1768510660549,28.69088768,141.51,141.45,27.54453352]
[1768510661057,6.3612,141.52,141.45,27.54453352]
[1768510661058,26.45549296,141.53,141.46,26.54453352]
[1768510661757,26.45549296,141.53,141.46,32.90803352]
[1768510663354,2.23539472,141.52,141.46,32.90803352]
[1768510664759,28.69088768,141.52,141.46,26.54453352]
[1768510666056,28.69088768,141.52,141.45,1.0]
[1768510666252,26.45549296,141.51,141.45,1.0]
[1768510666649,26.45549296,141.51,141.45,27.54453352]
[1768510669658,2.23539472,141.5,141.45,27.54453352]
[1768510673363,26.45549296,141.51,141.45,27.54453352]
[1768510673559,28.69088768,141.51,141.45,27.54453352]
[1768510675265,6.3613,141.52,141.45,27.54453352]
[1768510675565,34.62865322,141.54,141.46,25.22995696]
[1768510676860,32.3932585,141.54,141.47,2.23539472]
[1768510677057,32.3932585,141.54,141.47,27.46535168]
[1768510677462,26.0328585,141.54,141.47,27.46535168]